[Event "Late-Titled-Tuesday-Blitz-March-12-2024"]
[Site "Chess.com"]
[Date "2024.03.12"]
[Round "8"]
[White "GoltsevDmitry2000"]
[Black "Oleksandr_Bortnyk"]
[Result "0-1"]
[WhiteElo "2720"]
[BlackElo "3011"]
[TimeControl "180+1"]
[EndTime "15:27:18 PDT"]
[Termination "Oleksandr_Bortnyk won on time"]

1. e4 {[%clk 0:02:59.1]} 1... g6 {[%clk 0:02:55.3]} 2. d4 {[%clk 0:02:56.5]}
2... Bg7 {[%clk 0:02:53]} 3. c3 {[%clk 0:02:56.9]} 3... c6 {[%clk 0:02:49.7]} 4.
e5 {[%clk 0:02:56.6]} 4... d6 {[%clk 0:02:47.8]} 5. exd6 {[%clk 0:02:56.9]} 5...
exd6 {[%clk 0:02:47.9]} 6. Nf3 {[%clk 0:02:57.2]} 6... Nf6 {[%clk 0:02:48.4]} 7.
Bd3 {[%clk 0:02:56.9]} 7... O-O {[%clk 0:02:49.3]} 8. O-O {[%clk 0:02:56.3]}
8... a5 {[%clk 0:02:47.6]} 9. Bg5 {[%clk 0:02:56.1]} 9... Nbd7 {[%clk
0:02:47.2]} 10. Qd2 {[%clk 0:02:55.9]} 10... Re8 {[%clk 0:02:46.4]} 11. Na3
{[%clk 0:02:54.9]} 11... a4 {[%clk 0:02:43.4]} 12. Nc4 {[%clk 0:02:53.4]} 12...
Nb6 {[%clk 0:02:36.4]} 13. Nxb6 {[%clk 0:02:45.3]} 13... Qxb6 {[%clk 0:02:37.3]}
14. Rfe1 {[%clk 0:02:43.4]} 14... Rxe1+ {[%clk 0:02:28.2]} 15. Rxe1 {[%clk
0:02:44.3]} 15... Be6 {[%clk 0:02:28.3]} 16. a3 {[%clk 0:02:31.5]} 16... Ra5
{[%clk 0:02:13.5]} 17. Bh6 {[%clk 0:01:53.4]} 17... Bxh6 {[%clk 0:02:06.7]} 18.
Qxh6 {[%clk 0:01:54.3]} 18... Qxb2 {[%clk 0:02:06.6]} 19. Bxg6 {[%clk
0:01:51.1]} 19... hxg6 {[%clk 0:01:56.2]} 20. Rxe6 {[%clk 0:01:49.3]} 20... Rh5
{[%clk 0:01:53.7]} 21. Qe3 {[%clk 0:01:42.3]} 21... Qa1+ {[%clk 0:00:45.3]} 22.
Qe1 {[%clk 0:01:30]} 22... Qxe1+ {[%clk 0:00:43.7]} 23. Rxe1 {[%clk 0:01:30.9]}
23... Rb5 {[%clk 0:00:44]} 24. Nd2 {[%clk 0:01:28.3]} 24... Rb2 {[%clk
0:00:38.3]} 25. Nc4 {[%clk 0:01:25.6]} 25... Rb3 {[%clk 0:00:38.1]} 26. Nxd6
{[%clk 0:01:21.6]} 26... Rxc3 {[%clk 0:00:36.2]} 27. Nxb7 {[%clk 0:01:11.6]}
27... Rxa3 {[%clk 0:00:33.6]} 28. Nc5 {[%clk 0:01:08.3]} 28... Nd5 {[%clk
0:00:33.6]} 29. g3 {[%clk 0:01:01.6]} 29... Ra2 {[%clk 0:00:33.9]} 30. Re8+
{[%clk 0:00:51.1]} 30... Kg7 {[%clk 0:00:33.7]} 31. Ra8 {[%clk 0:00:23.8]} 31...
a3 {[%clk 0:00:34]} 32. Ra7 {[%clk 0:00:20]} 32... Ra1+ {[%clk 0:00:30]} 33. Kg2
{[%clk 0:00:19.8]} 33... a2 {[%clk 0:00:30.9]} 34. Ne6+ {[%clk 0:00:03.4]} 34...
Kg8 {[%clk 0:00:28.1]} 35. Nd8 {[%clk 0:00:01.9]} 35... Nb4 {[%clk 0:00:24]} 36.
Nxf7 {[%clk 0:00:02.2]} 36... Re1 {[%clk 0:00:24.2]} 37. Ne5 {[%clk 0:00:02]}
37... g5 {[%clk 0:00:20.4]} 38. h4 {[%clk 0:00:01.3]} 38... gxh4 {[%clk
0:00:20]} 39. gxh4 {[%clk 0:00:02.2]} 39... a1=Q {[%clk 0:00:20.6]} 40. Rxa1
{[%clk 0:00:02.6]} 40... Rxa1 {[%clk 0:00:21.3]} 41. Kf3 {[%clk 0:00:03.2]}
41... Kg7 {[%clk 0:00:18.6]} 42. Ke4 {[%clk 0:00:02.9]} 42... Kf6 {[%clk
0:00:18.4]} 43. f4 {[%clk 0:00:03.1]} 43... Re1+ {[%clk 0:00:18.3]} 44. Kf3
{[%clk 0:00:02.8]} 44... Kf5 {[%clk 0:00:17.8]} 45. h5 {[%clk 0:00:02.7]} 45...
Rf1+ {[%clk 0:00:18.1]} 46. Kg3 {[%clk 0:00:02.1]} 46... Nd5 {[%clk 0:00:16.2]}
47. h6 {[%clk 0:00:02.2]} 47... Nxf4 {[%clk 0:00:14.6]} 48. Ng4 {[%clk
0:00:02.3]} 48... Rg1+ {[%clk 0:00:14.8]} 49. Kf3 {[%clk 0:00:01.3]} 49... Rxg4
{[%clk 0:00:15.7]} 0-1

[Event "Late-Titled-Tuesday-Blitz-March-12-2024"]
[Site "Chess.com"]
[Date "2024.03.12"]
[Round "8"]
[White "Alphafischer2019"]
[Black "IlyaGrigorjev"]
[Result "1-0"]
[WhiteElo "2761"]
[BlackElo "2916"]
[TimeControl "180+1"]
[EndTime "15:27:19 PDT"]
[Termination "Alphafischer2019 won on time"]

1. Nf3 {[%clk 0:03:00.9]} 1... Nf6 {[%clk 0:03:00.1]} 2. g3 {[%clk 0:03:00.1]}
2... g6 {[%clk 0:03:00.2]} 3. b3 {[%clk 0:03:00.1]} 3... Bg7 {[%clk 0:03:00.7]}
4. Bb2 {[%clk 0:03:00.4]} 4... d5 {[%clk 0:02:58.9]} 5. Bg2 {[%clk 0:03:00.7]}
5... c5 {[%clk 0:02:58.9]} 6. O-O {[%clk 0:03:00.7]} 6... O-O {[%clk 0:02:59.4]}
7. c4 {[%clk 0:02:59.3]} 7... d4 {[%clk 0:02:59.1]} 8. b4 {[%clk 0:02:57.4]}
8... Re8 {[%clk 0:02:54.8]} 9. bxc5 {[%clk 0:02:55.6]} 9... e5 {[%clk
0:02:54.9]} 10. d3 {[%clk 0:02:56.2]} 10... Nbd7 {[%clk 0:02:51.5]} 11. Nbd2
{[%clk 0:02:51]} 11... Nxc5 {[%clk 0:02:50.7]} 12. Ba3 {[%clk 0:02:51.6]} 12...
Qa5 {[%clk 0:02:44.7]} 13. Qc1 {[%clk 0:02:45.3]} 13... Na4 {[%clk 0:02:42.4]}
14. Nb3 {[%clk 0:02:43.7]} 14... Qc7 {[%clk 0:02:42.2]} 15. Bb4 {[%clk
0:02:40.2]} 15... Bd7 {[%clk 0:02:35]} 16. Qa3 {[%clk 0:02:39.6]} 16... Nc3
{[%clk 0:02:28.9]} 17. Rfe1 {[%clk 0:02:34.5]} 17... Qd8 {[%clk 0:02:09.1]} 18.
Nc5 {[%clk 0:02:26.6]} 18... Bc6 {[%clk 0:02:00.8]} 19. Qb2 {[%clk 0:02:09.2]}
19... e4 {[%clk 0:01:51.9]} 20. Nxd4 {[%clk 0:02:00.4]} 20... Qxd4 {[%clk
0:01:35.2]} 21. Bxc3 {[%clk 0:02:00.4]} 21... Qxc5 {[%clk 0:01:30.3]} 22. Bxf6
{[%clk 0:02:01]} 22... e3 {[%clk 0:01:21.4]} 23. f4 {[%clk 0:01:39.6]} 23...
Bxf6 {[%clk 0:01:13.5]} 24. Qxf6 {[%clk 0:01:39]} 24... Bxg2 {[%clk 0:01:13.3]}
25. Kxg2 {[%clk 0:01:39.8]} 25... Re6 {[%clk 0:01:13.6]} 26. Qc3 {[%clk
0:01:34]} 26... Qc6+ {[%clk 0:01:08.6]} 27. Kg1 {[%clk 0:01:34.5]} 27... Rc8
{[%clk 0:01:05.6]} 28. Qd4 {[%clk 0:01:28.5]} 28... h5 {[%clk 0:01:02.3]} 29.
Rf1 {[%clk 0:01:27.4]} 29... h4 {[%clk 0:00:56.8]} 30. Rf3 {[%clk 0:01:15.9]}
30... Rce8 {[%clk 0:00:47.9]} 31. Rb1 {[%clk 0:01:02.7]} 31... h3 {[%clk
0:00:37.5]} 32. g4 {[%clk 0:00:54.4]} 32... Rd6 {[%clk 0:00:35]} 33. Qc3 {[%clk
0:00:54.6]} 33... Qd7 {[%clk 0:00:30.6]} 34. Kh1 {[%clk 0:00:46]} 34... Qxg4
{[%clk 0:00:29.3]} 35. Rg1 {[%clk 0:00:46.6]} 35... Qh4 {[%clk 0:00:21.7]} 36.
Rgg3 {[%clk 0:00:45.5]} 36... Rb6 {[%clk 0:00:20.6]} 37. Rxh3 {[%clk 0:00:29.8]}
37... Rb1+ {[%clk 0:00:20.8]} 38. Kg2 {[%clk 0:00:30.5]} 38... Qg4+ {[%clk
0:00:20.1]} 39. Rhg3 {[%clk 0:00:31.2]} 39... Qf5 {[%clk 0:00:08.7]} 40. Rg5
{[%clk 0:00:27.5]} 40... Qd7 {[%clk 0:00:06.4]} 41. Rh3 {[%clk 0:00:26.6]} 41...
Rg1+ {[%clk 0:00:04.1]} 42. Kxg1 {[%clk 0:00:25]} 42... Qxh3 {[%clk 0:00:05]}
43. Rg3 {[%clk 0:00:21.5]} 43... Qh4 {[%clk 0:00:05.1]} 44. Qd4 {[%clk
0:00:20.5]} 44... Qe7 {[%clk 0:00:04.4]} 45. Kg2 {[%clk 0:00:20.5]} 45... Qa3
{[%clk 0:00:04.6]} 46. Rh3 {[%clk 0:00:19.9]} 46... f6 {[%clk 0:00:03.3]} 47.
Qxf6 {[%clk 0:00:19.2]} 1-0

[Event "Late-Titled-Tuesday-Blitz-March-12-2024"]
[Site "Chess.com"]
[Date "2024.03.12"]
[Round "8"]
[White "ameetghasi100"]
[Black "N_Mullodzhanov"]
[Result "1-0"]
[WhiteElo "2790"]
[BlackElo "2517"]
[TimeControl "180+1"]
[EndTime "15:27:21 PDT"]
[Termination "ameetghasi100 won by checkmate"]

1. Nf3 {[%clk 0:03:00.5]} 1... d5 {[%clk 0:02:59.5]} 2. b3 {[%clk 0:02:59.3]}
2... Nf6 {[%clk 0:02:57.5]} 3. Bb2 {[%clk 0:03:00.2]} 3... g6 {[%clk 0:02:57.3]}
4. g3 {[%clk 0:03:00.4]} 4... Bg7 {[%clk 0:02:57.7]} 5. Bg2 {[%clk 0:03:01.1]}
5... O-O {[%clk 0:02:58.1]} 6. O-O {[%clk 0:03:01.8]} 6... c5 {[%clk 0:02:58.6]}
7. Ne5 {[%clk 0:03:01]} 7... Nbd7 {[%clk 0:02:57]} 8. Nxd7 {[%clk 0:03:00.6]}
8... Bxd7 {[%clk 0:02:56.6]} 9. e3 {[%clk 0:02:59.1]} 9... Bc6 {[%clk
0:02:55.4]} 10. Nc3 {[%clk 0:02:58]} 10... b5 {[%clk 0:02:52.1]} 11. Ne2 {[%clk
0:02:54.4]} 11... Qc7 {[%clk 0:02:48.3]} 12. d4 {[%clk 0:02:52.1]} 12... c4
{[%clk 0:02:45.7]} 13. Nf4 {[%clk 0:02:36.4]} 13... e6 {[%clk 0:02:42.5]} 14.
Re1 {[%clk 0:02:30.2]} 14... b4 {[%clk 0:02:42.2]} 15. a3 {[%clk 0:02:27.4]}
15... c3 {[%clk 0:02:37]} 16. Bc1 {[%clk 0:02:27.3]} 16... a5 {[%clk 0:02:37]}
17. Nd3 {[%clk 0:02:27.8]} 17... Qb6 {[%clk 0:02:24.1]} 18. Ne5 {[%clk
0:02:19.5]} 18... Bb5 {[%clk 0:02:20.5]} 19. a4 {[%clk 0:02:17.5]} 19... Be8
{[%clk 0:02:17.1]} 20. g4 {[%clk 0:02:14.9]} 20... Nd7 {[%clk 0:02:13.7]} 21.
Nd3 {[%clk 0:02:06.6]} 21... f5 {[%clk 0:02:09.3]} 22. h3 {[%clk 0:02:02.8]}
22... Nf6 {[%clk 0:02:07]} 23. f3 {[%clk 0:01:57.6]} 23... h5 {[%clk 0:02:00.1]}
24. g5 {[%clk 0:01:47.1]} 24... Nd7 {[%clk 0:01:51.5]} 25. Kh1 {[%clk
0:01:42.4]} 25... Qd8 {[%clk 0:01:41.5]} 26. e4 {[%clk 0:01:41.9]} 26... Bxd4
{[%clk 0:01:34.9]} 27. exd5 {[%clk 0:01:40]} 27... exd5 {[%clk 0:01:32.8]} 28.
Nf4 {[%clk 0:01:40.3]} 28... Be5 {[%clk 0:01:22.5]} 29. Ne6 {[%clk 0:01:39.3]}
29... Qe7 {[%clk 0:01:10.8]} 30. Nxf8 {[%clk 0:01:37.2]} 30... Qxf8 {[%clk
0:00:51.3]} 31. Qxd5+ {[%clk 0:01:36.2]} 31... Bf7 {[%clk 0:00:51.7]} 32. Qxd7
{[%clk 0:01:35.4]} 32... Rd8 {[%clk 0:00:50.8]} 33. Qb5 {[%clk 0:01:35.1]} 33...
Bg3 {[%clk 0:00:46]} 34. Be3 {[%clk 0:01:24.7]} 34... Rd5 {[%clk 0:00:39.2]} 35.
Qf1 {[%clk 0:01:17.2]} 35... Bxe1 {[%clk 0:00:33.1]} 36. Rxe1 {[%clk 0:01:18.1]}
36... Qd6 {[%clk 0:00:30.8]} 37. f4 {[%clk 0:01:17.7]} 37... Rd2 {[%clk
0:00:27]} 38. Bxd2 {[%clk 0:01:14.7]} 38... Qxd2 {[%clk 0:00:25.2]} 39. Re2
{[%clk 0:01:10.5]} 39... Qd4 {[%clk 0:00:23.1]} 40. Qf2 {[%clk 0:01:10.6]} 40...
Qd1+ {[%clk 0:00:22.7]} 41. Re1 {[%clk 0:01:10.8]} 41... Qd7 {[%clk 0:00:18.2]}
42. Qe3 {[%clk 0:01:10.3]} 42... h4 {[%clk 0:00:15]} 43. Kh2 {[%clk 0:01:09.2]}
43... Kg7 {[%clk 0:00:14.2]} 44. Qe5+ {[%clk 0:01:08.8]} 44... Kh7 {[%clk
0:00:13.5]} 45. Qf6 {[%clk 0:01:07.6]} 45... Qc7 {[%clk 0:00:11.5]} 46. Re5
{[%clk 0:01:07.9]} 46... Kg8 {[%clk 0:00:10.2]} 47. Qe7 {[%clk 0:01:04.1]} 47...
Qb8 {[%clk 0:00:06.4]} 48. Qd7 {[%clk 0:00:58.6]} 48... Bxb3 {[%clk 0:00:06.2]}
49. Re8+ {[%clk 0:00:58.2]} 49... Qxe8 {[%clk 0:00:05.7]} 50. Qxe8+ {[%clk
0:00:59.1]} 50... Kg7 {[%clk 0:00:04.9]} 51. Qe5+ {[%clk 0:00:58.5]} 51... Kg8
{[%clk 0:00:03.7]} 52. cxb3 {[%clk 0:00:56.9]} 52... c2 {[%clk 0:00:04.6]} 53.
Qb8+ {[%clk 0:00:56.3]} 53... Kh7 {[%clk 0:00:04]} 54. Qc7+ {[%clk 0:00:56.5]}
54... Kh8 {[%clk 0:00:04.5]} 55. Qxc2 {[%clk 0:00:56.6]} 55... Kg7 {[%clk
0:00:03.5]} 56. Qc7+ {[%clk 0:00:56.3]} 56... Kh8 {[%clk 0:00:02.3]} 57. Qe5+
{[%clk 0:00:56.6]} 57... Kh7 {[%clk 0:00:02.5]} 58. Qxa5 {[%clk 0:00:56.7]}
58... Kg7 {[%clk 0:00:02.9]} 59. Qxb4 {[%clk 0:00:57]} 59... Kh7 {[%clk
0:00:03.8]} 60. Qd6 {[%clk 0:00:57]} 60... Kg7 {[%clk 0:00:04.7]} 61. Qf6+
{[%clk 0:00:56]} 61... Kg8 {[%clk 0:00:01.5]} 62. Qe7 {[%clk 0:00:55.6]} 62...
Kh8 {[%clk 0:00:01.8]} 63. a5 {[%clk 0:00:55.9]} 63... Kg8 {[%clk 0:00:02.7]}
64. a6 {[%clk 0:00:56.2]} 64... Kh8 {[%clk 0:00:03.6]} 65. a7 {[%clk 0:00:56.3]}
65... Kg8 {[%clk 0:00:04.5]} 66. a8=Q# {[%clk 0:00:55.1]} 1-0

[Event "Late-Titled-Tuesday-Blitz-March-12-2024"]
[Site "Chess.com"]
[Date "2024.03.12"]
[Round "8"]
[White "ITheOnlyME"]
[Black "mightysmasher"]
[Result "0-1"]
[WhiteElo "2413"]
[BlackElo "2600"]
[TimeControl "180+1"]
[EndTime "15:27:21 PDT"]
[Termination "mightysmasher won by resignation"]

1. d4 {[%clk 0:02:56.3]} 1... d5 {[%clk 0:02:59.4]} 2. Bf4 {[%clk 0:02:54.8]}
2... Nf6 {[%clk 0:02:58.7]} 3. e3 {[%clk 0:02:54.5]} 3... e6 {[%clk 0:02:59.2]}
4. Nf3 {[%clk 0:02:54.2]} 4... Bd6 {[%clk 0:02:59.8]} 5. Bg3 {[%clk 0:02:54.8]}
5... O-O {[%clk 0:03:00.1]} 6. Bd3 {[%clk 0:02:55.3]} 6... b6 {[%clk 0:03:00.8]}
7. Qe2 {[%clk 0:02:55]} 7... Bb7 {[%clk 0:03:01.1]} 8. Nbd2 {[%clk 0:02:54.5]}
8... Ne4 {[%clk 0:03:01.1]} 9. Ne5 {[%clk 0:02:46]} 9... Nd7 {[%clk 0:02:59.5]}
10. Nef3 {[%clk 0:02:44]} 10... f5 {[%clk 0:02:56.9]} 11. c4 {[%clk 0:02:35.3]}
11... Qe7 {[%clk 0:02:48.8]} 12. a3 {[%clk 0:02:32.6]} 12... a5 {[%clk
0:02:48.2]} 13. Bxd6 {[%clk 0:02:23.9]} 13... Qxd6 {[%clk 0:02:46]} 14. cxd5
{[%clk 0:02:21.6]} 14... exd5 {[%clk 0:02:45.2]} 15. Rc1 {[%clk 0:02:17.9]}
15... c6 {[%clk 0:02:42.6]} 16. O-O {[%clk 0:02:14.3]} 16... Rae8 {[%clk
0:02:41.5]} 17. Ba6 {[%clk 0:02:13.1]} 17... Ba8 {[%clk 0:02:40.4]} 18. Nxe4
{[%clk 0:02:10.7]} 18... fxe4 {[%clk 0:02:39.7]} 19. Nd2 {[%clk 0:02:10.8]}
19... b5 {[%clk 0:02:31]} 20. a4 {[%clk 0:02:10.9]} 20... b4 {[%clk 0:02:24.6]}
21. Nb3 {[%clk 0:02:08.1]} 21... Rf6 {[%clk 0:02:23.2]} 22. Nxa5 {[%clk
0:02:04.6]} 22... Rh6 {[%clk 0:02:22.4]} 23. g3 {[%clk 0:02:03.4]} 23... Qe6
{[%clk 0:02:17.4]} 24. Bb7 {[%clk 0:01:51.3]} 24... Bxb7 {[%clk 0:02:09.9]} 25.
Nxb7 {[%clk 0:01:52.2]} 25... Nf6 {[%clk 0:02:05.5]} 26. f4 {[%clk 0:01:43.1]}
26... exf3 {[%clk 0:02:01.3]} 27. Rxf3 {[%clk 0:01:43.1]} 27... Ng4 {[%clk
0:02:00]} 28. Nc5 {[%clk 0:01:38.9]} 28... Qg6 {[%clk 0:01:53.9]} 29. Rcf1
{[%clk 0:01:22.9]} 29... Rxh2 {[%clk 0:01:47.7]} 30. Qxh2 {[%clk 0:01:23.8]}
30... Nxh2 {[%clk 0:01:47.4]} 31. Kxh2 {[%clk 0:01:24.7]} 31... h6 {[%clk
0:01:46.5]} 32. a5 {[%clk 0:01:18.8]} 32... Qc2+ {[%clk 0:01:44.2]} 33. R1f2
{[%clk 0:01:18.6]} 33... Qc1 {[%clk 0:01:43.3]} 34. a6 {[%clk 0:01:16.8]} 34...
Qa1 {[%clk 0:01:42.8]} 35. b3 {[%clk 0:01:12.9]} 35... Re7 {[%clk 0:01:34.4]}
36. Kg2 {[%clk 0:01:04.5]} 36... Qe1 {[%clk 0:01:08.5]} 37. Nd3 {[%clk
0:00:54.2]} 37... Qa1 {[%clk 0:01:04.4]} 38. Nc5 {[%clk 0:00:54.1]} 38... Ra7
{[%clk 0:01:01.4]} 39. Rf8+ {[%clk 0:00:47.1]} 39... Kh7 {[%clk 0:01:01]} 40.
R8f7 {[%clk 0:00:47.5]} 40... Rxa6 {[%clk 0:00:52.8]} 41. Nxa6 {[%clk
0:00:45.9]} 41... Qxa6 {[%clk 0:00:53.7]} 42. Rc7 {[%clk 0:00:40.5]} 42... Kg8
{[%clk 0:00:51.1]} 43. Kh3 {[%clk 0:00:30.6]} 43... Qa1 {[%clk 0:00:39]} 44. Kg2
{[%clk 0:00:17.6]} 44... Qe1 {[%clk 0:00:31.1]} 45. Rxc6 {[%clk 0:00:14.2]}
45... Qxe3 {[%clk 0:00:31]} 46. Rc8+ {[%clk 0:00:12.9]} 46... Kh7 {[%clk
0:00:30]} 47. Rd8 {[%clk 0:00:10.3]} 47... Qxd4 {[%clk 0:00:29.2]} 48. Rd7
{[%clk 0:00:09.9]} 48... Kg8 {[%clk 0:00:27.5]} 49. Rff7 {[%clk 0:00:09]} 49...
Qe4+ {[%clk 0:00:27.3]} 50. Kh3 {[%clk 0:00:09.2]} 50... Qe6+ {[%clk 0:00:25.8]}
51. Kg2 {[%clk 0:00:09.4]} 51... Qxf7 {[%clk 0:00:25.9]} 0-1

[Event "Late-Titled-Tuesday-Blitz-March-12-2024"]
[Site "Chess.com"]
[Date "2024.03.12"]
[Round "8"]
[White "MatthewG-p4p"]
[Black "vi_pranav"]
[Result "0-1"]
[WhiteElo "2910"]
[BlackElo "3049"]
[TimeControl "180+1"]
[EndTime "15:27:26 PDT"]
[Termination "vi_pranav won on time"]

1. e4 {[%clk 0:02:58.2]} 1... e5 {[%clk 0:03:00]} 2. Nf3 {[%clk 0:02:58.5]} 2...
Nc6 {[%clk 0:03:00.4]} 3. d4 {[%clk 0:02:57.3]} 3... exd4 {[%clk 0:03:00.3]} 4.
c3 {[%clk 0:02:58]} 4... d3 {[%clk 0:02:48.7]} 5. Bxd3 {[%clk 0:02:57.9]} 5...
d6 {[%clk 0:02:48.5]} 6. O-O {[%clk 0:02:58.1]} 6... Nf6 {[%clk 0:02:48.2]} 7.
h3 {[%clk 0:02:57.4]} 7... Be7 {[%clk 0:02:48.4]} 8. Nbd2 {[%clk 0:02:57.8]}
8... O-O {[%clk 0:02:48.5]} 9. Re1 {[%clk 0:02:56.9]} 9... Re8 {[%clk
0:02:48.5]} 10. Nc4 {[%clk 0:02:52.6]} 10... Bf8 {[%clk 0:02:46.9]} 11. Bg5
{[%clk 0:02:52.5]} 11... h6 {[%clk 0:02:46.3]} 12. Bh4 {[%clk 0:02:52]} 12...
Be6 {[%clk 0:02:45.7]} 13. Qc2 {[%clk 0:02:37.4]} 13... Be7 {[%clk 0:02:35.3]}
14. Rad1 {[%clk 0:02:33.9]} 14... Nd7 {[%clk 0:02:34.9]} 15. Bg3 {[%clk
0:02:32.9]} 15... Bf6 {[%clk 0:02:16.4]} 16. b4 {[%clk 0:01:26.4]} 16... a6
{[%clk 0:02:07.6]} 17. a4 {[%clk 0:01:23.9]} 17... b5 {[%clk 0:01:51.6]} 18. Ne3
{[%clk 0:01:19.3]} 18... bxa4 {[%clk 0:01:46.2]} 19. Qxa4 {[%clk 0:01:19.6]}
19... Ne7 {[%clk 0:01:41.3]} 20. e5 {[%clk 0:01:11]} 20... dxe5 {[%clk
0:01:08.9]} 21. Be4 {[%clk 0:01:10.9]} 21... Rb8 {[%clk 0:01:00.9]} 22. Qxa6
{[%clk 0:01:04.4]} 22... Rb6 {[%clk 0:00:52]} 23. Qa4 {[%clk 0:01:00.2]} 23...
Qc8 {[%clk 0:00:49.1]} 24. Nd5 {[%clk 0:00:46.4]} 24... Nxd5 {[%clk 0:00:32]}
25. Bxd5 {[%clk 0:00:45.6]} 25... Bxd5 {[%clk 0:00:31.8]} 26. Rxd5 {[%clk
0:00:44.7]} 26... Nf8 {[%clk 0:00:28.7]} 27. Nxe5 {[%clk 0:00:26]} 27... Rbe6
{[%clk 0:00:26.9]} 28. f4 {[%clk 0:00:25.1]} 28... Ng6 {[%clk 0:00:22.7]} 29.
Qd7 {[%clk 0:00:07.7]} 29... Bxe5 {[%clk 0:00:21.1]} 30. fxe5 {[%clk 0:00:06.4]}
30... Qb7 {[%clk 0:00:17.9]} 31. Rc5 {[%clk 0:00:05.8]} 31... R8e7 {[%clk
0:00:16.6]} 32. Qd8+ {[%clk 0:00:04.9]} 32... Kh7 {[%clk 0:00:16.6]} 33. Qd3
{[%clk 0:00:05.4]} 33... Ra6 {[%clk 0:00:14.8]} 34. h4 {[%clk 0:00:03.7]} 34...
Ra2 {[%clk 0:00:13.8]} 35. Re2 {[%clk 0:00:03]} 35... Rd7 {[%clk 0:00:10.4]} 36.
Qe3 {[%clk 0:00:02.3]} 36... Rd1+ {[%clk 0:00:09.8]} 37. Kh2 {[%clk 0:00:02.6]}
37... Raa1 {[%clk 0:00:10.1]} 38. Be1 {[%clk 0:00:01.3]} 38... Kg8 {[%clk
0:00:04.5]} 0-1

[Event "Late-Titled-Tuesday-Blitz-March-12-2024"]
[Site "Chess.com"]
[Date "2024.03.12"]
[Round "8"]
[White "Sina_Movahed"]
[Black "JSPrepz"]
[Result "1-0"]
[WhiteElo "3035"]
[BlackElo "2835"]
[TimeControl "180+1"]
[EndTime "15:27:29 PDT"]
[Termination "Sina_Movahed won by checkmate"]

1. e4 {[%clk 0:03:00.9]} 1... e5 {[%clk 0:03:00]} 2. Nf3 {[%clk 0:03:01]} 2...
Nc6 {[%clk 0:03:00.4]} 3. Bb5 {[%clk 0:03:00.4]} 3... f5 {[%clk 0:03:00.3]} 4.
d3 {[%clk 0:02:59.8]} 4... fxe4 {[%clk 0:03:00.6]} 5. dxe4 {[%clk 0:03:00.7]}
5... Nf6 {[%clk 0:03:01.1]} 6. O-O {[%clk 0:03:00.6]} 6... Bc5 {[%clk
0:03:01.2]} 7. Bxc6 {[%clk 0:03:00.2]} 7... bxc6 {[%clk 0:03:01.4]} 8. Nxe5
{[%clk 0:03:00.8]} 8... O-O {[%clk 0:03:02]} 9. Nc3 {[%clk 0:03:00.7]} 9... d6
{[%clk 0:03:02.2]} 10. Na4 {[%clk 0:02:58.5]} 10... Qe8 {[%clk 0:03:00.1]} 11.
Nd3 {[%clk 0:02:53.2]} 11... Bg4 {[%clk 0:03:00.4]} 12. Qe1 {[%clk 0:02:48.9]}
12... Bd4 {[%clk 0:03:01]} 13. c3 {[%clk 0:02:47.7]} 13... Bb6 {[%clk
0:03:01.3]} 14. Nxb6 {[%clk 0:02:48]} 14... axb6 {[%clk 0:03:02.2]} 15. f3
{[%clk 0:02:48.6]} 15... Be6 {[%clk 0:03:02.9]} 16. a3 {[%clk 0:02:48.6]} 16...
Bc4 {[%clk 0:03:03.2]} 17. Qd1 {[%clk 0:02:47.7]} 17... c5 {[%clk 0:03:00.6]}
18. b3 {[%clk 0:02:44.5]} 18... Ba6 {[%clk 0:02:51.4]} 19. c4 {[%clk 0:02:37.1]}
19... b5 {[%clk 0:02:51.6]} 20. cxb5 {[%clk 0:02:37.7]} 20... Qxb5 {[%clk
0:02:50.9]} 21. Nf4 {[%clk 0:02:27.3]} 21... Qxf1+ {[%clk 0:02:48.9]} 22. Qxf1
{[%clk 0:02:28.2]} 22... Bxf1 {[%clk 0:02:49.1]} 23. Kxf1 {[%clk 0:02:29.1]}
23... Rfb8 {[%clk 0:02:25.5]} 24. Rb1 {[%clk 0:02:28.2]} 24... Ra7 {[%clk
0:02:20.6]} 25. Nd3 {[%clk 0:02:20.5]} 25... Rab7 {[%clk 0:01:53]} 26. b4 {[%clk
0:02:18.6]} 26... c4 {[%clk 0:01:45.3]} 27. Nf4 {[%clk 0:02:15]} 27... c5 {[%clk
0:01:42.5]} 28. Bd2 {[%clk 0:02:10.2]} 28... cxb4 {[%clk 0:01:05]} 29. Bxb4
{[%clk 0:02:11.1]} 29... Nxe4 {[%clk 0:00:51]} 30. Rc1 {[%clk 0:01:52]} 30...
Rf7 {[%clk 0:00:37.8]} 31. Ne2 {[%clk 0:01:08.3]} 31... d5 {[%clk 0:00:36.1]}
32. Rd1 {[%clk 0:01:02.3]} 32... Nf6 {[%clk 0:00:34.8]} 33. Kf2 {[%clk
0:01:01.6]} 33... Ng4+ {[%clk 0:00:31.4]} 34. Kg1 {[%clk 0:00:59.7]} 34... Ne3
{[%clk 0:00:31.5]} 35. Rd2 {[%clk 0:00:59.5]} 35... Rc8 {[%clk 0:00:29.6]} 36.
Kf2 {[%clk 0:00:51]} 36... Ng4+ {[%clk 0:00:25.2]} 37. Kg1 {[%clk 0:00:51]}
37... Nf6 {[%clk 0:00:24]} 38. Nd4 {[%clk 0:00:51]} 38... Rd7 {[%clk 0:00:23.8]}
39. Nf5 {[%clk 0:00:46.8]} 39... Re8 {[%clk 0:00:22.3]} 40. Nd4 {[%clk
0:00:44.6]} 40... Re1+ {[%clk 0:00:21]} 41. Kf2 {[%clk 0:00:44.5]} 41... Ra1
{[%clk 0:00:20.9]} 42. Re2 {[%clk 0:00:43.1]} 42... Kf7 {[%clk 0:00:20.1]} 43.
g4 {[%clk 0:00:42.5]} 43... g6 {[%clk 0:00:18.6]} 44. h4 {[%clk 0:00:41.8]}
44... Rd1 {[%clk 0:00:15.4]} 45. Nc6 {[%clk 0:00:41.7]} 45... Rc7 {[%clk
0:00:10.5]} 46. Nd8+ {[%clk 0:00:40]} 46... Kg8 {[%clk 0:00:10.9]} 47. g5 {[%clk
0:00:40.4]} 47... Ne4+ {[%clk 0:00:06.4]} 48. fxe4 {[%clk 0:00:39.1]} 48... d4
{[%clk 0:00:07.1]} 49. Kg2 {[%clk 0:00:39.1]} 49... Rd7 {[%clk 0:00:05.4]} 50.
Nc6 {[%clk 0:00:37.6]} 50... c3 {[%clk 0:00:04.5]} 51. Ne5 {[%clk 0:00:30.9]}
51... d3 {[%clk 0:00:03.6]} 52. Rf2 {[%clk 0:00:31.1]} 52... c2 {[%clk
0:00:03.1]} 53. Nxd7 {[%clk 0:00:21]} 53... c1=Q {[%clk 0:00:03.3]} 54. Nf6+
{[%clk 0:00:21.6]} 54... Kg7 {[%clk 0:00:03.7]} 55. Ne8+ {[%clk 0:00:21.7]}
55... Kg8 {[%clk 0:00:03.3]} 56. Rf8# {[%clk 0:00:22.6]} 1-0